[Event "AUT-ch U16-Open 2025"]
[Site "Fuerstenfeld"]
[Date "2025.04.17"]
[Round "7.1"]
[White "Nicolussi, Hieronymus"]
[Black "Benedikt, Noah"]
[Result "0-1"]
[Annotator "NA RC"]
[ECO "B13"]
[WhiteElo "1999"]
[BlackElo "1976"]
[PlyCount "78"]
[EventDate "2025.04.12"]
[EventType "swiss"]
[EventCountry "AUT"]
[SourceTitle "playchess.com"]
[Source "ChessBase"]
[SourceQuality "1"]
[TimeControl "5400+30"]

1. e4 {[%emt 0:00:01]} c6 {[%emt 0:00:05]} 2. d4 {[%emt 0:00:18]} d5 {[%emt 0:00:06]} 3. exd5 {[%emt 0:00:04]} cxd5 {[%emt 0:00:05]} 4. Bd3 {[%emt 0:00:04]} Nf6 {[%emt 0:00:06]} 5. c3 {[%emt 0:00:04]} Bg4 {[%emt 0:00:14]} 6. Qb3 {[%emt 0:00:07]} Qc7 {[%emt 0:00:12]} 7. h3 {[%emt 0:00:39]} Bd7 {[%emt 0:00:42]} 8. g3 {[%emt 0:01:08]} Nc6 {[%emt 0:00:49]} 9. Bf4 {[%emt 0:01:29]} e5 {[%emt 0:00:09]} 10. dxe5 {[%emt 0:00:36]} Nxe5 {[%emt 0:00:18]} 11. Bxe5 {[%emt 0:01:26]} Qxe5+ {[%emt 0:00:06]} 12. Be2 {[%emt 0:01:43]} Bc5 {[%emt 0:01:24]} 13. Nd2 {[%emt 0:07:12]} O-O {[%emt 0:03:58]} 14. Ngf3 {[%emt 0:03:29]} Qe7 {[%emt 0:00:09]} 15. Kf1 {[%emt 0:01:27]} Rfe8 {[%emt 0:36:23]} 16. Re1 $17 {[%emt 0:03:55]} Ne4 {[%emt 0:05:59]} 17. Rh2 {[%emt 0:08:35]} Qd6 {[%emt 0:14:30]} 18. Nxe4 {[%emt 0:10:39]} dxe4 {[%emt 0:02:57]} 19. Rd1 {[%emt 0:01:26]} exf3 {[%emt 0:01:49]} 20. Rxd6 {[%emt 0:00:20]} fxe2+ {[%emt 0:00:05]} 21. Ke1 {[%emt 0:00:14]} Bxd6 {[%emt 0:00:10]} 22. f4 {[%emt 0:06:30]} Bc6 {[%emt 0:00:54]} 23. Rxe2 {[%emt 0:00:52]} Bc5 {[%emt 0:00:08]} 24. Qc4 {[%emt 0:01:22]} Bf3 {[%emt 0:03:09]} 25. Re5 {[%emt 0:01:36]} Bd6 {[%emt 0:02:28]} 26. Rxe8+ {[%emt 0:00:42]} Rxe8+ {[%emt 0:00:04]} 27. Kf2 {[%emt 0:00:14]} Bc6 {[%emt 0:00:39]} 28. Qd4 {[%emt 0:01:28]} Bb8 {[%emt 0:02:12]} 29. b4 {[%emt 0:01:39]} a6 {[%emt 0:00:36]} 30. c4 {[%emt 0:01:17]} Bc7 {[%emt 0:00:07]} 31. Qc5 {[%emt 0:03:07]} Re6 {[%emt 0:01:41]} 32. Qa7 {[%emt 0:02:22]} h5 {[%emt 0:01:34]} 33. b5 {[%emt 0:01:17]} axb5 {[%emt 0:00:13]} 34. cxb5 {[%emt 0:00:10]} Bd5 {[%emt 0:00:54]} 35. Qa8+ {[%emt 0:02:24]} Kh7 {[%emt 0:00:09]} 36. Qa3 {[%emt 0:01:15]} Bb6+ {[%emt 0:00:22]} 37. Kf1 {[%emt 0:00:23]} Bc4+ {[%emt 0:00:38]} 38. Kg2 {[%emt 0:00:12]} Re2+ {[%emt 0:00:15]} 39. Kf3 {[%emt 0:00:21]} Re3+ {[%emt 0:00:19]} 0-1

[Event "AUT-ch U16-Open 2025"]
[Site "Fuerstenfeld"]
[Date "2025.04.17"]
[Round "7.2"]
[White "Stickler, Florentin"]
[Black "Onipko, Mark"]
[Result "1-0"]
[Annotator "RC"]
[ECO "C10"]
[WhiteElo "2189"]
[BlackElo "1979"]
[PlyCount "83"]
[EventDate "2025.04.12"]
[EventType "swiss"]
[EventCountry "AUT"]
[SourceTitle "playchess.com"]
[Source "ChessBase"]
[SourceQuality "1"]
[TimeControl "5400+30"]

1. e4 {[%emt 0:00:01]} e6 {[%emt 0:00:06]} 2. d4 {[%emt 0:00:05]} d5 {[%emt 0:00:04]} 3. Nc3 {[%emt 0:00:04]} dxe4 {[%emt 0:00:06]} 4. Nxe4 {[%emt 0:00:06]} Nd7 {[%emt 0:00:07]} 5. Nf3 {[%emt 0:01:19]} Ngf6 {[%emt 0:00:40]} 6. Nxf6+ {[%emt 0:00:38]} Nxf6 {[%emt 0:00:08]} 7. Bd3 {[%emt 0:00:16]} c5 {[%emt 0:03:50]} 8. dxc5 {[%emt 0:06:42]} Bxc5 {[%emt 0:01:44]} 9. Bg5 {[%emt 0:00:30]} a6 {[%emt 0:07:10]} 10. Qe2 {[%emt 0:01:11]} h6 {[%emt 0:05:38]} 11. Bh4 {[%emt 0:04:11]} Qb6 {[%emt 0:08:58]} 12. O-O {[%emt 0:03:55]} Bd6 {[%emt 0:10:26]} 13. Rad1 {[%emt 0:03:38]} Bd7 {[%emt 0:09:49]} 14. Ne5 {[%emt 0:01:36]} Qxb2 {[%emt 0:17:26]} 15. Nc4 {[%emt 0:03:13]} Qb4 {[%emt 0:02:03]} 16. Bxf6 {[%emt 0:11:24]} gxf6 {[%emt 0:00:16]} 17. Rb1 {[%emt 0:07:17]} Qc5 {[%emt 0:01:37]} 18. Rfd1 {[%emt 0:01:00]} Bc7 {[%emt 0:06:53]} 19. Rxb7 {[%emt 0:03:03]} Rd8 {[%emt 0:01:54]} 20. Qg4 {[%emt 0:05:48]} Kf8 {[%emt 0:03:19]} 21. Qh4 {[%emt 0:04:15]} Ke7 {[%emt 0:07:19]} 22. Ne3 {[%emt 0:02:03]} h5 {[%emt 0:06:36]} 23. Re1 {[%emt 0:00:53]} Be5 {[%emt 0:02:23]} 24. Kh1 {[%emt 0:03:32]} Rb8 {[%emt 0:02:41]} 25. Rxb8 {[%emt 0:01:25]} Rxb8 {[%emt 0:00:11]} 26. f4 {[%emt 0:01:26]} Bc3 {[%emt 0:00:59]} 27. Nf5+ {[%emt 0:01:14]} Kd8 {[%emt 0:00:23]} 28. Rd1 {[%emt 0:00:54]} exf5 {[%emt 0:00:28]} 29. Qxh5 {[%emt 0:00:16]} Ke7 {[%emt 0:00:35]} 30. h3 {[%emt 0:01:23]} Rg8 {[%emt 0:00:48]} 31. Qe2+ {[%emt 0:00:24]} Be6 {[%emt 0:00:34]} 32. Rb1 {[%emt 0:00:12]} Bd4 {[%emt 0:00:47]} 33. Bxa6 {[%emt 0:00:30]} Rd8 {[%emt 0:00:29]} 34. a4 {[%emt 0:02:24]} Qd6 {[%emt 0:00:31]} 35. Qf1 {[%emt 0:01:57]} Be3 {[%emt 0:00:19]} 36. a5 {[%emt 0:01:13]} Bxf4 {[%emt 0:00:31]} 37. Bb7 {[%emt 0:00:17]} Be3 {[%emt 0:00:36]} 38. a6 {[%emt 0:00:54]} Bb6 {[%emt 0:00:26]} 39. Bf3 {[%emt 0:00:21]} Bc7 {[%emt 0:00:18]} 40. Qg1 {[%emt 0:00:07]} Qxa6 {[%emt 0:00:45]} 41. Rb7 {[%emt 0:02:37]} Qd6 {[%emt 0:00:17]} 42. g3 {[%emt 0:00:53]} 1-0

[Event "AUT-ch U16-Open 2025"]
[Site "Fuerstenfeld"]
[Date "2025.04.17"]
[Round "7.3"]
[White "Reichhuetter, Richard"]
[Black "Pausweg, Daniel"]
[Result "1-0"]
[Annotator "NA RC"]
[ECO "C01"]
[WhiteElo "1916"]
[BlackElo "2080"]
[PlyCount "57"]
[EventDate "2025.04.12"]
[EventType "swiss"]
[EventCountry "AUT"]
[SourceTitle "playchess.com"]
[Source "ChessBase"]
[SourceQuality "1"]
[TimeControl "5400+30"]

1. e4 {[%emt 0:00:02]} e6 {[%emt 0:00:20]} 2. d4 {[%emt 0:04:03]} d5 {[%emt 0:00:08]} 3. exd5 {[%emt 0:01:16]} exd5 {[%emt 0:00:08]} 4. Bd3 {[%emt 0:00:02]} Nf6 {[%emt 0:00:23]} 5. Ne2 {[%emt 0:00:07]} Bd6 {[%emt 0:00:39]} 6. Bg5 {[%emt 0:00:17]} c6 {[%emt 0:01:06] C01: French: Exchange Variation.} 7. c3 {[%emt 0:00:48]} Nbd7 {[%emt 0:00:57]} 8. Qc2 {[%emt 0:00:12]} h6 {[%emt 0:00:24]} 9. Bh4 {[%emt 0:00:01]} Nf8 {[%emt 0:03:27]} 10. Nd2 {[%emt 0:03:13]} Ne6 {[%emt 0:00:42]} 11. Nf3 {[%emt 0:02:04]} g5 {[%emt 0:02:01]} 12. Bg3 {[%emt 0:00:12]} Nh5 {[%emt 0:01:56]} 13. Be5 {[%emt 0:08:22]} Bxe5 {[%emt 0:01:23]} 14. Nxe5 {[%emt 0:01:23]} Qf6 {[%emt 0:01:29]} 15. g3 {[%emt 0:14:59]} Nhg7 {[%emt 0:03:27]} 16. O-O-O {[%emt 0:00:38]} Bd7 {[%emt 0:00:56]} 17. Rhf1 {[%emt 0:04:50]} O-O-O {[%emt 0:01:15]} 18. f4 {[%emt 0:00:34]} Rhf8 {[%emt 0:01:13]} (18... gxf4 $16 19. Nxf4 Qe7) 19. Kb1 {[%emt 0:01:05]} gxf4 {[%emt 0:01:09]} 20. Nxf4 {[%emt 0:03:00]} Nxf4 {[%emt 0:00:25]} 21. Rxf4 {[%emt 0:00:02]} Qe7 $18 {[%emt 0:00:56]} 22. Rdf1 {[%emt 0:01:20]} Be6 {[%emt 0:00:30]} 23. Qa4 {[%emt 0:03:57]} Kb8 {[%emt 0:00:50]} 24. Qxc6 {[%emt 0:01:24]} Nh5 {[%emt 0:01:43]} 25. R4f3 {[%emt 0:01:27]} Bg4 {[%emt 0:01:20]} 26. Rxf7 {[%emt 0:00:29]} Be2 {[%emt 0:02:19]} 27. Bxe2 {[%emt 0:01:45]} Rxf7 {[%emt 0:09:10]} 28. Rxf7 {[%emt 0:00:26]} Qxe5 {[%emt 0:00:56]} 29. Qxb7# {[%emt 0:00:10]} 1-0

[Event "AUT-ch U16-Open 2025"]
[Site "Fuerstenfeld"]
[Date "2025.04.17"]
[Round "7.4"]
[White "Ortner, Sebastian"]
[Black "Chen, Chicheng Leon"]
[Result "1/2-1/2"]
[Annotator "NA RC"]
[ECO "D95"]
[WhiteElo "1925"]
[BlackElo "2021"]
[PlyCount "136"]
[EventDate "2025.04.12"]
[EventType "swiss"]
[EventCountry "AUT"]
[SourceTitle "playchess.com"]
[Source "ChessBase"]
[SourceQuality "1"]
[TimeControl "5400+30"]

1. d4 {[%emt 0:00:03]} Nf6 {[%emt 0:00:09]} 2. c4 {[%emt 0:00:14]} g6 {[%emt 0:00:25]} 3. Nc3 {[%emt 0:00:12]} d5 {[%emt 0:00:18]} 4. Nf3 {[%emt 0:00:13]} Bg7 {[%emt 0:00:08]} 5. e3 {[%emt 0:00:08]} O-O {[%emt 0:00:18]} 6. Qb3 {[%emt 0:00:08]} e6 {[%emt 0:06:58]} 7. Be2 {[%emt 0:00:12]} b6 {[%emt 0:00:32]} 8. O-O {[%emt 0:00:32]} Bb7 {[%emt 1:25:42]} 9. Rd1 {[%emt 0:00:32]} Nbd7 {[%emt 0:00:00]} 10. cxd5 {[%emt 0:00:32]} exd5 {[%emt 0:00:00]} 11. a4 {[%emt 0:00:30]} a5 {[%emt 0:00:00]} 12. Ne5 {[%emt 0:00:27]} Qe7 {[%emt 0:00:00]} 13. f4 {[%emt 0:01:14]} Rad8 {[%emt 0:00:00]} 14. Bd2 {[%emt 0:07:44]} c6 {[%emt 0:00:00]} 15. Rac1 {[%emt 0:02:48]} Rfe8 {[%emt 0:00:00]} 16. Be1 $14 {[%emt 0:05:49]} Nxe5 {[%emt 0:00:00]} 17. fxe5 {[%emt 0:05:25]} Nd7 {[%emt 0:00:00]} 18. Bg4 {[%emt 0:07:06]} Qb4 {[%emt 0:00:00]} 19. Qa2 {[%emt 0:13:27]} Qe7 {[%emt 0:00:00]} 20. Bf2 {[%emt 0:11:56]} Qb4 {[%emt 0:00:00]} 21. e4 {[%emt 0:14:19]} Bh6 {[%emt 0:00:00]} 22. Rc2 {[%emt 0:08:03]} Ba6 {[%emt 0:01:15]} 23. h3 {[%emt 0:05:36]} Bc4 {[%emt 0:00:28]} 24. Qb1 {[%emt 0:02:36]} Bb3 {[%emt 0:00:12]} 25. exd5 {[%emt 0:00:33]} cxd5 {[%emt 0:00:32]} 26. Re1 {[%emt 0:01:12]} Bxc2 {[%emt 0:00:27]} 27. Qxc2 {[%emt 0:00:05]} Qc4 {[%emt 0:02:28]} 28. Be2 {[%emt 0:00:37]} Qc6 {[%emt 0:00:51]} 29. Bf3 {[%emt 0:02:22]} Nf8 {[%emt 0:01:53]} 30. Qb3 {[%emt 0:04:28]} Bd2 {[%emt 0:01:53]} 31. Bxd5 {[%emt 0:00:39]} Rxd5 {[%emt 0:00:17]} 32. Qxd5 {[%emt 0:00:17]} Qxd5 {[%emt 0:01:02]} 33. Nxd5 {[%emt 0:00:06]} Rd8 {[%emt 0:00:34]} 34. Nf6+ {[%emt 0:00:20]} Kg7 {[%emt 0:00:04]} 35. Re2 {[%emt 0:01:21]} Bg5 {[%emt 0:00:58]} 36. Ne4 {[%emt 0:00:36]} Ne6 {[%emt 0:00:20]} 37. Nxg5 {[%emt 0:01:20]} Nxg5 {[%emt 0:00:04]} 38. Bh4 {[%emt 0:00:42]} h6 {[%emt 0:00:06]} 39. Rd2 {[%emt 0:00:45]} Ne4 {[%emt 0:02:06]} 40. Bxd8 {[%emt 0:00:38]} Nxd2 {[%emt 0:00:00]} 41. Bxb6 {[%emt 0:00:58]} Nc4 {[%emt 0:00:00]} 42. Bc7 {[%emt 0:00:36]} Nxb2 {[%emt 0:00:00]} 43. Bxa5 {[%emt 0:00:30]} Nxa4 {[%emt 0:00:00]} 44. Kf2 {[%emt 0:01:02]} Nb2 {[%emt 0:00:16]} 45. Kf3 {[%emt 0:00:52]} Nc4 {[%emt 0:00:53]} 46. Bc7 {[%emt 0:00:34]} Kf8 {[%emt 0:00:38]} 47. Ke4 {[%emt 0:00:51]} Ke7 {[%emt 0:00:16]} 48. Kd5 {[%emt 0:01:25]} Ne3+ {[%emt 0:00:09]} 49. Kc6 {[%emt 0:00:02]} Ke6 {[%emt 0:00:20]} 50. g3 {[%emt 0:01:45]} Nd5 {[%emt 0:00:12]} 51. Bd8 {[%emt 0:00:43]} Nb4+ {[%emt 0:00:31]} 52. Kc5 {[%emt 0:00:19]} Nd5 {[%emt 0:00:10]} 53. g4 {[%emt 0:00:46]} Nf4 {[%emt 0:00:34]} 54. h4 {[%emt 0:00:25]} h5 {[%emt 0:01:59]} 55. gxh5 {[%emt 0:00:05]} gxh5 {[%emt 0:00:14]} 56. Bg5 {[%emt 0:00:42]} Nd5 {[%emt 0:00:05]} 57. Kc4 {[%emt 0:00:39]} Nb6+ {[%emt 0:00:20]} 58. Kc5 {[%emt 0:00:12]} Nd5 {[%emt 0:00:04]} 59. Bd2 {[%emt 0:00:40]} Ne7 {[%emt 0:00:19]} 60. Ba5 {[%emt 0:00:36]} Nd5 {[%emt 0:00:31]} 61. Kc6 {[%emt 0:00:25]} Ne7+ {[%emt 0:00:15]} 62. Kc5 {[%emt 0:00:51]} Nd5 {[%emt 0:00:10]} 63. Be1 {[%emt 0:00:32]} Ne7 {[%emt 0:00:10]} 64. Bd2 {[%emt 0:00:26]} Nd5 {[%emt 0:00:08]} 65. Be1 {[%emt 0:00:29]} Ne7 {[%emt 0:00:09]} 66. Bf2 {[%emt 0:00:30]} Nd5 {[%emt 0:00:22]} 67. Kc4 {[%emt 0:00:28]} Ne7 {[%emt 0:00:27]} 68. Kd3 {[%emt 0:00:42]} Kf5 {[%emt 0:00:14]} 1/2-1/2

[Event "AUT-ch U16-Open 2025"]
[Site "Fuerstenfeld"]
[Date "2025.04.17"]
[Round "7.5"]
[White "Martinovic, David"]
[Black "Squasi, Ernesto"]
[Result "0-1"]
[Annotator "NA RC"]
[ECO "B41"]
[WhiteElo "1968"]
[BlackElo "1904"]
[PlyCount "102"]
[EventDate "2025.04.12"]
[EventType "swiss"]
[EventCountry "AUT"]
[SourceTitle "playchess.com"]
[Source "ChessBase"]
[SourceQuality "1"]
[TimeControl "5400+30"]

1. e4 {[%emt 0:00:01]} c5 {[%emt 0:00:04]} 2. Nf3 {[%emt 0:00:05]} e6 {[%emt 0:00:05]} 3. d4 {[%emt 0:00:06]} cxd4 {[%emt 0:00:05]} 4. Nxd4 {[%emt 0:00:04]} a6 {[%emt 0:00:05]} 5. c4 {[%emt 0:00:04]} Nf6 {[%emt 0:00:05]} 6. Nc3 {[%emt 0:00:07]} Qc7 {[%emt 0:00:07]} 7. a3 {[%emt 0:00:07]} b6 {[%emt 0:00:05]} 8. Be2 {[%emt 0:00:25]} Bb7 {[%emt 0:00:42]} 9. f3 {[%emt 0:00:44]} Be7 {[%emt 0:08:46]} 10. Be3 {[%emt 0:00:16]} O-O {[%emt 0:00:53]} 11. O-O {[%emt 0:00:29]} d6 {[%emt 0:05:11]} 12. Rc1 {[%emt 0:00:49]} Nbd7 {[%emt 0:00:26]} 13. b4 {[%emt 0:01:08]} Rac8 {[%emt 0:01:12]} 14. Rc2 {[%emt 0:00:24]} Qb8 {[%emt 0:01:23]} 15. Qc1 {[%emt 0:00:25]} Rfd8 {[%emt 0:18:20]} 16. Rd1 $14 {[%emt 0:01:32]} Re8 {[%emt 0:08:33]} 17. Kh1 {[%emt 0:00:58]} Bd8 {[%emt 0:02:17]} 18. Bg1 {[%emt 0:01:17]} Bc7 {[%emt 0:03:07]} 19. Bf1 {[%emt 0:02:54]} Qa8 {[%emt 0:02:49]} 20. Nb3 {[%emt 0:03:56]} Qb8 {[%emt 0:02:30]} 21. Na4 {[%emt 0:06:12]} d5 {[%emt 0:09:24]} 22. exd5 {[%emt 0:07:03]} exd5 {[%emt 0:00:56]} 23. c5 {[%emt 0:19:38]} Bf4 {[%emt 0:01:08]} 24. Qb1 {[%emt 0:00:41]} bxc5 {[%emt 0:05:48]} 25. Naxc5 {[%emt 0:05:03]} Nxc5 {[%emt 0:02:53]} 26. Nxc5 {[%emt 0:04:17]} Be3 {[%emt 0:03:18]} 27. Bxa6 {[%emt 0:10:06]} Bxc5 {[%emt 0:01:11]} 28. Bxb7 {[%emt 0:01:24]} Bxg1 {[%emt 0:00:14]} 29. Kxg1 {[%emt 0:05:34]} Qxb7 {[%emt 0:00:10]} 30. Ra2 {[%emt 0:01:34]} Qb6+ {[%emt 0:04:55]} 31. Kh1 {[%emt 0:02:52]} Rc4 {[%emt 0:02:28]} 32. Rb2 {[%emt 0:02:22]} Ra8 {[%emt 0:01:35]} 33. Qd3 {[%emt 0:01:11]} h6 {[%emt 0:02:49]} 34. h3 {[%emt 0:02:09]} Qc7 {[%emt 0:00:35]} 35. Rb3 {[%emt 0:00:57]} Re8 {[%emt 0:04:02]} 36. b5 {[%emt 0:01:54]} Rc1 {[%emt 0:01:32]} 37. Qf1 {[%emt 0:03:02]} Rxd1 {[%emt 0:00:16]} 38. Qxd1 {[%emt 0:00:03]} Qg3 {[%emt 0:00:36]} 39. Rb1 {[%emt 0:00:26]} Qd6 {[%emt 0:03:30]} 40. Qd4 {[%emt 0:01:34]} Nh5 {[%emt 0:01:20]} 41. Qb4 {[%emt 0:02:12]} Qb6 {[%emt 0:01:25]} 42. a4 {[%emt 0:01:37]} Ra8 {[%emt 0:01:00]} 43. Ra1 {[%emt 0:04:36]} Ra5 {[%emt 0:01:15]} 44. Rc1 {[%emt 0:00:59]} Ra8 {[%emt 0:01:33]} 45. Qg4 {[%emt 0:08:00]} Nf6 {[%emt 0:00:37]} 46. Qb4 {[%emt 0:00:54]} Nh5 {[%emt 0:00:01]} 47. Rc6 {[%emt 0:00:37]} Qf2 {[%emt 0:00:12]} 48. b6 {[%emt 0:01:00]} Ng3+ {[%emt 0:00:04]} 49. Kh2 {[%emt 0:00:10]} Nf1+ {[%emt 0:00:44]} 50. Kh1 {[%emt 0:00:11]} Ne3 {[%emt 0:00:45]} 51. Rc2 {[%emt 0:01:14]} Qxc2 {[%emt 0:00:13]} 0-1

[Event "AUT-ch U16-Open 2025"]
[Site "Fuerstenfeld"]
[Date "2025.04.17"]
[Round "7.6"]
[White "Keller, Niklas"]
[Black "Taizhanov, Aissultan"]
[Result "0-1"]
[Annotator "RC"]
[ECO "B40"]
[WhiteElo "1888"]
[BlackElo "1952"]
[PlyCount "22"]
[EventDate "2025.04.12"]
[EventType "swiss"]
[EventCountry "AUT"]
[SourceTitle "playchess.com"]
[Source "ChessBase"]
[SourceQuality "1"]
[TimeControl "5400+30"]

1. e4 {[%emt 0:00:03]} c5 {[%emt 0:00:12]} 2. Nf3 {[%emt 0:00:05]} e6 {[%emt 0:00:04]} 3. g3 {[%emt 0:00:15]} d5 {[%emt 0:00:59]} 4. exd5 {[%emt 0:00:05]} exd5 {[%emt 0:00:05]} 5. d4 {[%emt 0:00:08]} Nc6 {[%emt 0:01:49]} 6. Be3 {[%emt 0:00:50]} Bg4 {[%emt 0:10:25]} 7. dxc5 {[%emt 0:16:45]} d4 {[%emt 0:04:59]} 8. Bf4 {[%emt 0:00:20]} Qe7+ {[%emt 0:00:47]} 9. Kd2 {[%emt 0:00:31]} Qxc5 {[%emt 0:03:55]} 10. h3 {[%emt 0:06:37]} Bxf3 {[%emt 0:03:22]} 11. Qxf3 {[%emt 0:00:48]} g5 {[%emt 0:03:13]} 0-1

[Event "AUT-ch U16-Open 2025"]
[Site "Fuerstenfeld"]
[Date "2025.04.17"]
[Round "7.7"]
[White "Brown, Julian"]
[Black "Roessler, Felix"]
[Result "1/2-1/2"]
[Annotator "NA RC"]
[ECO "B11"]
[WhiteElo "1873"]
[BlackElo "1840"]
[PlyCount "100"]
[EventDate "2025.04.12"]
[EventType "swiss"]
[EventCountry "AUT"]
[SourceTitle "playchess.com"]
[Source "ChessBase"]
[SourceQuality "1"]
[TimeControl "5400+30"]

1. e4 {[%emt 0:00:02]} c6 {[%emt 0:00:15]} 2. Nc3 {[%emt 0:00:06]} d5 {[%emt 0:00:20]} 3. Nf3 {[%emt 0:00:05]} dxe4 {[%emt 0:00:17]} 4. Nxe4 {[%emt 0:00:07]} Nf6 {[%emt 0:00:36]} 5. Qe2 {[%emt 0:00:53]} Bg4 {[%emt 0:01:16]} 6. Nxf6+ {[%emt 0:03:27]} gxf6 {[%emt 0:00:10]} 7. h3 {[%emt 0:02:33]} Bxf3 {[%emt 0:01:59]} 8. Qxf3 {[%emt 0:01:30]} Nd7 {[%emt 0:01:22]} 9. b3 {[%emt 0:01:22]} e6 {[%emt 0:01:57]} 10. Bb2 {[%emt 0:02:45]} Be7 {[%emt 0:01:45]} 11. Bd3 {[%emt 0:03:15]} Qc7 {[%emt 0:07:20]} 12. O-O-O {[%emt 0:00:53]} O-O-O {[%emt 0:01:44]} 13. a4 {[%emt 0:04:42]} Ne5 {[%emt 0:03:54]} 14. Bxe5 {[%emt 0:01:39]} Qxe5 {[%emt 0:00:40]} 15. Kb1 {[%emt 0:04:45]} Ba3 {[%emt 0:00:50]} 16. c3 {[%emt 0:00:25]} a5 {[%emt 0:03:48]} 17. Rhe1 {[%emt 0:01:35]} Qd5 {[%emt 0:01:46]} 18. Qxd5 {[%emt 0:02:43]} Rxd5 {[%emt 0:00:10]} 19. Kc2 {[%emt 0:00:25]} Rhd8 {[%emt 0:00:49]} 20. Re3 {[%emt 0:01:08]} f5 {[%emt 0:00:38]} 21. g4 {[%emt 0:04:08]} fxg4 {[%emt 0:00:54]} 22. hxg4 {[%emt 0:00:09]} Rg5 {[%emt 0:00:43]} 23. Bxh7 {[%emt 0:00:55]} Rxg4 {[%emt 0:00:12]} 24. Rf3 {[%emt 0:01:10]} f5 {[%emt 0:00:50]} 25. Rxf5 {[%emt 0:02:21]} Rxa4 {[%emt 0:02:20]} 26. bxa4 {[%emt 0:00:32]} exf5 {[%emt 0:00:10]} 27. Bxf5+ {[%emt 0:00:02]} Kc7 {[%emt 0:00:12]} 28. Rh1 {[%emt 0:00:30]} b5 {[%emt 0:00:21]} 29. Rh7+ {[%emt 0:00:15]} Kb6 {[%emt 0:00:32]} 30. axb5 {[%emt 0:00:31]} cxb5 {[%emt 0:00:42]} 31. Be4 {[%emt 0:00:46]} a4 {[%emt 0:00:49]} 32. d4 {[%emt 0:01:58]} b4 {[%emt 0:00:37]} 33. cxb4 {[%emt 0:01:08]} Rxd4 {[%emt 0:00:53]} 34. Rb7+ {[%emt 0:03:10]} Ka6 {[%emt 0:00:29]} 35. b5+ {[%emt 0:00:14]} Ka5 {[%emt 0:00:19]} 36. Bc6 {[%emt 0:00:34]} Bc5 {[%emt 0:01:45]} 37. Rb8 {[%emt 0:00:46]} Rc4+ {[%emt 0:00:56]} 38. Kd3 {[%emt 0:00:13]} Rd4+ {[%emt 0:03:19]} 39. Kc3 {[%emt 0:00:13]} Rb4 {[%emt 0:05:14]} 40. b6 {[%emt 0:01:06]} Rxb6 {[%emt 0:01:09]} 41. Ra8+ {[%emt 0:00:16]} Ra6 {[%emt 0:00:24]} 42. Rxa6+ {[%emt 0:00:03]} Kxa6 {[%emt 0:00:08]} 43. f4 {[%emt 0:00:01]} a3 {[%emt 0:00:23]} 44. f5 {[%emt 0:01:03]} Bd4+ {[%emt 0:00:47]} 45. Kb3 {[%emt 0:00:23]} Bb2 {[%emt 0:00:11]} 46. Bb5+ {[%emt 0:00:49]} Kxb5 {[%emt 0:00:24]} 47. f6 {[%emt 0:00:03]} Kc6 {[%emt 0:00:08]} 48. f7 {[%emt 0:00:03]} Bg7 {[%emt 0:00:13]} 49. Kxa3 {[%emt 0:00:16]} Kd7 {[%emt 0:00:08]} 50. f8=N+ {[%emt 0:00:05]} Bxf8+ {[%emt 0:00:17]} 1/2-1/2